[Event "Live Chess"]
[Site "Chess.com"]
[Date "2024.06.02"]
[Round "-"]
[White "MaksymYurii"]
[Black "Tatarinov_Maxim"]
[Result "0-1"]
[WhiteElo "1001"]
[BlackElo "2269"]
[TimeControl "300"]
[EndTime "2:04:02 PDT"]
[Termination "Tatarinov_Maxim won by checkmate"]

1. e4 {[%clk 0:04:51.7]} 1... c5 {[%clk 0:04:58.5]} 2. Nf3 {[%clk 0:04:50.4]}
2... Nc6 {[%clk 0:04:57.7]} 3. Bc4 {[%clk 0:04:49.3]} 3... e6 {[%clk 0:04:56.4]}
4. O-O {[%clk 0:04:44.1]} 4... Nf6 {[%clk 0:04:55.6]} 5. e5 {[%clk 0:04:40.9]}
5... d5 {[%clk 0:04:54.5]} 6. exf6 {[%clk 0:04:39.2]} 6... dxc4 {[%clk
0:04:53.6]} 7. fxg7 {[%clk 0:04:36]} 7... Bxg7 {[%clk 0:04:53.5]} 8. d3 {[%clk
0:04:33.3]} 8... cxd3 {[%clk 0:04:51.9]} 9. cxd3 {[%clk 0:04:32.4]} 9... O-O
{[%clk 0:04:48.8]} 10. Nc3 {[%clk 0:04:29.2]} 10... b6 {[%clk 0:04:47.7]} 11.
Bg5 {[%clk 0:04:20.7]} 11... Qd7 {[%clk 0:04:39.9]} 12. Ne4 {[%clk 0:04:10.1]}
12... f5 {[%clk 0:04:36.6]} 13. Ng3 {[%clk 0:04:04.1]} 13... Bb7 {[%clk
0:04:35.5]} 14. Nh5 {[%clk 0:03:58.8]} 14... Bxb2 {[%clk 0:04:30.8]} 15. Bh6
{[%clk 0:03:30.6]} 15... Bxa1 {[%clk 0:03:59.3]} 16. Bxf8 {[%clk 0:03:23.1]}
16... Rxf8 {[%clk 0:03:46.7]} 17. Qxa1 {[%clk 0:03:19.3]} 17... Qf7 {[%clk
0:03:46.2]} 18. Ng3 {[%clk 0:03:03.5]} 18... Qf6 {[%clk 0:03:42.9]} 19. Qd1
{[%clk 0:02:57]} 19... Nd4 {[%clk 0:03:35.4]} 20. Nxd4 {[%clk 0:02:45.5]} 20...
cxd4 {[%clk 0:03:35.3]} 21. Nh5 {[%clk 0:02:43.6]} 21... Qg5 {[%clk 0:03:28.7]}
22. Ng3 {[%clk 0:02:40.2]} 22... f4 {[%clk 0:03:15.4]} 23. Ne4 {[%clk
0:02:36.3]} 23... Bxe4 {[%clk 0:03:11.3]} 24. dxe4 {[%clk 0:02:34]} 24... f3
{[%clk 0:03:11.2]} 25. g3 {[%clk 0:02:30.3]} 25... Qg4 {[%clk 0:03:06.7]} 26.
Qd2 {[%clk 0:01:53.4]} 26... Rf6 {[%clk 0:02:18.6]} 27. e5 {[%clk 0:01:45.6]}
27... Rf7 {[%clk 0:01:30.3]} 28. Rc1 {[%clk 0:01:36.6]} 28... Kg7 {[%clk
0:01:28.3]} 29. Rc4 {[%clk 0:01:12.2]} 29... h6 {[%clk 0:01:23.1]} 30. Rxd4
{[%clk 0:01:05.3]} 30... Qh3 {[%clk 0:01:21.8]} 31. Rg4+ {[%clk 0:00:18.4]}
31... Qxg4 {[%clk 0:00:59.5]} 32. Kf1 {[%clk 0:00:18.3]} 32... Qc4+ {[%clk
0:00:53.6]} 33. Ke1 {[%clk 0:00:16.7]} 33... Rc7 {[%clk 0:00:43.8]} 34. Kd1
{[%clk 0:00:13.9]} 34... Qf1+ {[%clk 0:00:41.2]} 35. Qe1 {[%clk 0:00:12.4]}
35... Rc1+ {[%clk 0:00:40]} 36. Kd2 {[%clk 0:00:11.6]} 36... Qxe1+ {[%clk
0:00:39.8]} 37. Kd3 {[%clk 0:00:10.5]} 37... Rc3+ {[%clk 0:00:38.9]} 38. Kd4
{[%clk 0:00:09]} 38... Qd2+ {[%clk 0:00:37.7]} 39. Ke4 {[%clk 0:00:07.7]} 39...
Qd3+ {[%clk 0:00:36.7]} 40. Kf4 {[%clk 0:00:06.7]} 40... Qf5# {[%clk 0:00:35.7]}
0-1

[Event "Live Chess"]
[Site "Chess.com"]
[Date "2024.06.02"]
[Round "-"]
[White "WorcesterYork"]
[Black "road2gm5000"]
[Result "1-0"]
[WhiteElo "2475"]
[BlackElo "1091"]
[TimeControl "300"]
[EndTime "2:04:05 PDT"]
[Termination "WorcesterYork won by resignation"]

1. e4 {[%clk 0:04:57.9]} 1... c6 {[%clk 0:04:58.6]} 2. c4 {[%clk 0:04:56.6]}
2... d5 {[%clk 0:04:58.3]} 3. cxd5 {[%clk 0:04:56.5]} 3... cxd5 {[%clk
0:04:57.7]} 4. exd5 {[%clk 0:04:55.7]} 4... Qxd5 {[%clk 0:04:57.3]} 5. Nc3
{[%clk 0:04:55.4]} 5... Qd8 {[%clk 0:04:56.5]} 6. Nf3 {[%clk 0:04:55.2]} 6...
Nc6 {[%clk 0:04:54.6]} 7. d4 {[%clk 0:04:54.1]} 7... Bg4 {[%clk 0:04:52.5]} 8.
d5 {[%clk 0:04:53.3]} 8... Nb4 {[%clk 0:04:48.9]} 9. Qa4+ {[%clk 0:04:50.7]}
9... Qd7 {[%clk 0:04:44.6]} 10. Bb5 {[%clk 0:04:47.8]} 10... Nc6 {[%clk
0:04:41.3]} 11. dxc6 {[%clk 0:04:46.2]} 11... Qe6+ {[%clk 0:04:31]} 12. Be3
{[%clk 0:04:44.5]} 12... Kd8 {[%clk 0:04:22.5]} 13. cxb7 {[%clk 0:04:42.7]}
13... Rb8 {[%clk 0:04:22]} 14. O-O-O+ {[%clk 0:04:41.1]} 14... Kc7 {[%clk
0:04:19.8]} 15. Qxa7 {[%clk 0:04:34.6]} 15... Bxf3 {[%clk 0:04:12.9]} 16. Bf4+
{[%clk 0:04:33]} 1-0

[Event "Live Chess"]
[Site "Chess.com"]
[Date "2024.06.02"]
[Round "-"]
[White "booktrunk"]
[Black "vincents82"]
[Result "0-1"]
[WhiteElo "1509"]
[BlackElo "2004"]
[TimeControl "300"]
[EndTime "2:04:16 PDT"]
[Termination "vincents82 won by resignation"]

1. d4 {[%clk 0:04:54.1]} 1... d5 {[%clk 0:04:59]} 2. Nc3 {[%clk 0:04:52.6]} 2...
Nf6 {[%clk 0:04:51.8]} 3. Bf4 {[%clk 0:04:50.7]} 3... c6 {[%clk 0:04:51]} 4. Nf3
{[%clk 0:04:47.4]} 4... Bf5 {[%clk 0:04:46.3]} 5. h3 {[%clk 0:04:39.9]} 5... e6
{[%clk 0:04:45]} 6. e3 {[%clk 0:04:38.9]} 6... Nbd7 {[%clk 0:04:44]} 7. g4
{[%clk 0:04:37.3]} 7... Be4 {[%clk 0:04:42.6]} 8. Nxe4 {[%clk 0:04:34.8]} 8...
Nxe4 {[%clk 0:04:40.6]} 9. Nd2 {[%clk 0:04:32.7]} 9... Ndf6 {[%clk 0:04:29.1]}
10. Nxe4 {[%clk 0:04:27.9]} 10... Nxe4 {[%clk 0:04:28.2]} 11. f3 {[%clk
0:04:26.7]} 11... Qh4+ {[%clk 0:04:26.7]} 12. Ke2 {[%clk 0:04:19.7]} 12... Qf2+
{[%clk 0:04:23.1]} 13. Kd3 {[%clk 0:04:18.4]} 13... Nd6 {[%clk 0:04:02.5]} 14.
Qe2 {[%clk 0:04:15.2]} 14... Qh4 {[%clk 0:03:55.1]} 15. Bxd6 {[%clk 0:04:08.6]}
15... Bxd6 {[%clk 0:03:53.8]} 16. Qe1 {[%clk 0:04:04.6]} 16... Qd8 {[%clk
0:03:51.1]} 17. Bg2 {[%clk 0:03:59.9]} 17... Qb6 {[%clk 0:03:48.7]} 18. Rb1
{[%clk 0:03:51.4]} 18... Qa6+ {[%clk 0:03:42.3]} 19. Kd2 {[%clk 0:03:50.1]}
19... Qxa2 {[%clk 0:03:39.3]} 20. Ke2 {[%clk 0:03:39.4]} 20... Qa6+ {[%clk
0:03:35.2]} 21. Kf2 {[%clk 0:03:37.1]} 21... c5 {[%clk 0:03:32.1]} 22. Bf1
{[%clk 0:03:35.5]} 22... Qc6 {[%clk 0:03:26.7]} 23. dxc5 {[%clk 0:03:33.5]}
23... Qxc5 {[%clk 0:03:22]} 24. b4 {[%clk 0:03:22.6]} 24... Qxc2+ {[%clk
0:03:19.1]} 25. Kg1 {[%clk 0:03:15.9]} 25... Rc8 {[%clk 0:03:12.5]} 26. Bb5+
{[%clk 0:03:14.3]} 26... Ke7 {[%clk 0:03:11]} 27. Kf1 {[%clk 0:03:06.8]} 27...
a6 {[%clk 0:02:58]} 28. Rg1 {[%clk 0:03:05.3]} 28... axb5 {[%clk 0:02:49.6]} 29.
Rg2 {[%clk 0:03:05.2]} 29... Qc4+ {[%clk 0:02:47]} 30. Kg1 {[%clk 0:03:02.9]}
30... Qc3 {[%clk 0:02:41.5]} 0-1

[Event "Live Chess"]
[Site "Chess.com"]
[Date "2024.06.02"]
[Round "-"]
[White "TheSmoulderingMaster"]
[Black "80Times"]
[Result "0-1"]
[WhiteElo "1774"]
[BlackElo "1892"]
[TimeControl "300"]
[EndTime "2:04:22 PDT"]
[Termination "80Times won by checkmate"]

1. e4 {[%clk 0:04:56.5]} 1... g6 {[%clk 0:04:59.4]} 2. d4 {[%clk 0:04:55.1]}
2... d6 {[%clk 0:04:59]} 3. Nc3 {[%clk 0:04:53.2]} 3... c6 {[%clk 0:04:58.3]} 4.
Nf3 {[%clk 0:04:52.4]} 4... Bg7 {[%clk 0:04:57.3]} 5. Bf4 {[%clk 0:04:51]} 5...
Nd7 {[%clk 0:04:54.3]} 6. Qd2 {[%clk 0:04:49.2]} 6... h6 {[%clk 0:04:51.3]} 7.
O-O-O {[%clk 0:04:48.1]} 7... b5 {[%clk 0:04:50.2]} 8. e5 {[%clk 0:04:46.7]}
8... b4 {[%clk 0:04:47.1]} 9. Ne4 {[%clk 0:04:44.9]} 9... Qa5 {[%clk 0:04:42.4]}
10. Kb1 {[%clk 0:04:42.8]} 10... g5 {[%clk 0:04:38.5]} 11. Bg3 {[%clk
0:04:40.6]} 11... d5 {[%clk 0:04:27.8]} 12. Nc5 {[%clk 0:04:21.6]} 12... Nxc5
{[%clk 0:04:26]} 13. dxc5 {[%clk 0:04:21]} 13... Qxc5 {[%clk 0:04:24.9]} 14. h4
{[%clk 0:04:15.7]} 14... g4 {[%clk 0:04:19.1]} 15. Nd4 {[%clk 0:04:11]} 15... a5
{[%clk 0:04:13]} 16. e6 {[%clk 0:04:08.3]} 16... Bxe6 {[%clk 0:04:05.5]} 17.
Nxe6 {[%clk 0:04:06.2]} 17... fxe6 {[%clk 0:04:03.8]} 18. Qe2 {[%clk 0:03:57.9]}
18... Kd7 {[%clk 0:03:50.1]} 19. Be5 {[%clk 0:03:49.6]} 19... Bxe5 {[%clk
0:03:43.7]} 20. Qxe5 {[%clk 0:03:48.3]} 20... Nf6 {[%clk 0:03:41.8]} 21. Bd3
{[%clk 0:03:45.6]} 21... a4 {[%clk 0:03:28]} 22. Rhe1 {[%clk 0:03:39.9]} 22...
Qd6 {[%clk 0:03:25.5]} 23. Qe3 {[%clk 0:03:31.4]} 23... a3 {[%clk 0:02:38.8]}
24. Bg6 {[%clk 0:03:24.3]} 24... Raf8 {[%clk 0:02:15.6]} 25. Qb6 {[%clk
0:03:18.1]} 25... Rhg8 {[%clk 0:02:08.5]} 26. h5 {[%clk 0:03:15.5]} 26... Ne8
{[%clk 0:02:02.4]} 27. Re4 {[%clk 0:03:03]} 27... Nc7 {[%clk 0:01:55.5]} 28.
Rxg4 {[%clk 0:02:56.4]} 28... Rb8 {[%clk 0:01:44.7]} 29. Qa7 {[%clk 0:02:48.5]}
29... Ra8 {[%clk 0:01:40.1]} 30. Qe3 {[%clk 0:02:45.2]} 30... axb2 {[%clk
0:01:36.4]} 31. Kxb2 {[%clk 0:02:42.5]} 31... Nb5 {[%clk 0:01:21.5]} 32. Re4
{[%clk 0:02:32.2]} 32... Nc3 {[%clk 0:01:17.9]} 33. Re5 {[%clk 0:02:15]} 33...
Rxa2+ {[%clk 0:01:15.1]} 34. Kb3 {[%clk 0:02:12.4]} 34... Rga8 {[%clk
0:01:04.8]} 35. Rdxd5 {[%clk 0:01:45.2]} 35... cxd5 {[%clk 0:00:58.1]} 36. Qxc3
{[%clk 0:01:23.2]} 36... R8a3# {[%clk 0:00:56.1]} 0-1

[Event "Live Chess"]
[Site "Chess.com"]
[Date "2024.06.02"]
[Round "-"]
[White "upoe610"]
[Black "peteopeteo"]
[Result "1-0"]
[WhiteElo "2179"]
[BlackElo "1536"]
[TimeControl "300"]
[EndTime "2:04:32 PDT"]
[Termination "upoe610 won by resignation"]

1. c4 {[%clk 0:04:57.5]} 1... f5 {[%clk 0:04:58.1]} 2. g3 {[%clk 0:04:55.4]}
2... Nf6 {[%clk 0:04:55.6]} 3. Bg2 {[%clk 0:04:54.5]} 3... d6 {[%clk 0:04:54.8]}
4. Nc3 {[%clk 0:04:50.8]} 4... e6 {[%clk 0:04:51.4]} 5. Nf3 {[%clk 0:04:47.8]}
5... Be7 {[%clk 0:04:27.8]} 6. d4 {[%clk 0:04:46.4]} 6... O-O {[%clk 0:04:26.1]}
7. O-O {[%clk 0:04:45.5]} 7... Nbd7 {[%clk 0:04:22]} 8. d5 {[%clk 0:04:42]} 8...
e5 {[%clk 0:04:17.6]} 9. e4 {[%clk 0:04:39.6]} 9... fxe4 {[%clk 0:04:12.7]} 10.
Ng5 {[%clk 0:04:38.8]} 10... Nc5 {[%clk 0:03:31.2]} 11. b4 {[%clk 0:04:30.7]}
11... Nd3 {[%clk 0:03:07.3]} 12. Ngxe4 {[%clk 0:04:27.9]} 12... Nxb4 {[%clk
0:03:00.4]} 13. Nxf6+ {[%clk 0:04:25.1]} 13... Bxf6 {[%clk 0:02:57.6]} 14. Ne4
{[%clk 0:04:25]} 14... Na6 {[%clk 0:02:52.8]} 15. Be3 {[%clk 0:04:19.1]} 15...
Bf5 {[%clk 0:02:48.8]} 16. Rb1 {[%clk 0:03:53.2]} 16... b6 {[%clk 0:02:44.8]}
17. Rc1 {[%clk 0:03:49.4]} 17... Bg6 {[%clk 0:02:16.5]} 18. Qa4 {[%clk
0:03:41.4]} 18... Nc5 {[%clk 0:02:13.1]} 19. Bxc5 {[%clk 0:03:37]} 19... bxc5
{[%clk 0:02:13]} 20. Rfe1 {[%clk 0:03:31]} 20... Qe8 {[%clk 0:02:06.8]} 21. Qxe8
{[%clk 0:03:26.6]} 21... Bxe8 {[%clk 0:02:06.7]} 22. Bh3 {[%clk 0:03:25.4]}
22... Rb8 {[%clk 0:01:59.6]} 23. Rb1 {[%clk 0:03:23.6]} 23... Bg6 {[%clk
0:01:56.4]} 24. Rb3 {[%clk 0:03:20.5]} 24... Bxe4 {[%clk 0:01:50.5]} 25. Rxe4
{[%clk 0:03:18.1]} 25... Rxb3 {[%clk 0:01:50.2]} 26. axb3 {[%clk 0:03:17.4]}
26... Rb8 {[%clk 0:01:49.9]} 27. Be6+ {[%clk 0:03:15.7]} 27... Kf8 {[%clk
0:01:44.8]} 28. Re3 {[%clk 0:03:13.5]} 28... Bg5 {[%clk 0:01:37.5]} 29. Rf3+
{[%clk 0:03:12.2]} 29... Bf6 {[%clk 0:01:33.2]} 30. g4 {[%clk 0:03:09.1]} 30...
h6 {[%clk 0:01:32.2]} 31. h4 {[%clk 0:03:08.4]} 31... Ke8 {[%clk 0:01:25.9]} 32.
g5 {[%clk 0:03:03.8]} 32... hxg5 {[%clk 0:01:24.7]} 33. hxg5 {[%clk 0:03:03.2]}
33... Bxg5 {[%clk 0:01:23.8]} 34. Rf7 {[%clk 0:03:03]} 34... Bf6 {[%clk
0:01:15.1]} 35. Rxc7 {[%clk 0:03:01.3]} 35... Rxb3 {[%clk 0:01:07]} 36. Rxa7
{[%clk 0:02:58.7]} 36... Rb4 {[%clk 0:00:54.9]} 37. Bd7+ {[%clk 0:02:57.7]}
37... Kd8 {[%clk 0:00:47.5]} 38. Bb5 {[%clk 0:02:57.6]} 38... Rb1+ {[%clk
0:00:39]} 39. Kg2 {[%clk 0:02:56.6]} 39... Rb2 {[%clk 0:00:35.7]} 40. Rd7+
{[%clk 0:02:54.4]} 40... Kc8 {[%clk 0:00:34]} 41. Rxd6 {[%clk 0:02:53.8]} 41...
Rxb5 {[%clk 0:00:30.2]} 42. cxb5 {[%clk 0:02:52.2]} 42... e4 {[%clk 0:00:29.5]}
43. Rc6+ {[%clk 0:02:51]} 43... Kd7 {[%clk 0:00:28.4]} 44. Rxc5 {[%clk
0:02:50.9]} 44... Kd6 {[%clk 0:00:27.8]} 45. Rc6+ {[%clk 0:02:48.7]} 45... Ke5
{[%clk 0:00:26.4]} 46. b6 {[%clk 0:02:45.4]} 46... Kxd5 {[%clk 0:00:24.7]} 47.
Rxf6 {[%clk 0:02:43.4]} 47... gxf6 {[%clk 0:00:22.3]} 48. b7 {[%clk 0:02:42.9]}
1-0

[Event "Live Chess"]
[Site "Chess.com"]
[Date "2024.06.02"]
[Round "-"]
[White "Duke_of_Bebington"]
[Black "SergiiA"]
[Result "0-1"]
[WhiteElo "1653"]
[BlackElo "1548"]
[TimeControl "300"]
[EndTime "2:04:42 PDT"]
[Termination "SergiiA won by resignation"]

1. e4 {[%clk 0:04:57.3]} 1... c5 {[%clk 0:04:59.1]} 2. c3 {[%clk 0:04:55.8]}
2... d5 {[%clk 0:04:57.6]} 3. exd5 {[%clk 0:04:54.3]} 3... Qxd5 {[%clk
0:04:56.8]} 4. Nf3 {[%clk 0:04:54]} 4... a6 {[%clk 0:04:55]} 5. d4 {[%clk
0:04:52.6]} 5... Bg4 {[%clk 0:04:46.6]} 6. Be2 {[%clk 0:04:50.7]} 6... e6 {[%clk
0:04:44.2]} 7. Be3 {[%clk 0:04:38]} 7... Nf6 {[%clk 0:04:39.1]} 8. h3 {[%clk
0:04:30.1]} 8... Bh5 {[%clk 0:04:35.4]} 9. Qb3 {[%clk 0:04:20.4]} 9... Qxb3
{[%clk 0:04:26.3]} 10. axb3 {[%clk 0:04:19]} 10... cxd4 {[%clk 0:04:24.3]} 11.
Nxd4 {[%clk 0:04:13.4]} 11... Bxe2 {[%clk 0:04:22.7]} 12. Kxe2 {[%clk
0:04:12.5]} 12... Be7 {[%clk 0:04:12.9]} 13. Nd2 {[%clk 0:04:07.9]} 13... O-O
{[%clk 0:04:12.1]} 14. N2f3 {[%clk 0:04:07.1]} 14... Nbd7 {[%clk 0:04:10.9]} 15.
Rad1 {[%clk 0:04:04.5]} 15... Nc5 {[%clk 0:04:10.1]} 16. b4 {[%clk 0:04:00.9]}
16... Nce4 {[%clk 0:04:06]} 17. Ne5 {[%clk 0:03:55.3]} 17... Rfd8 {[%clk
0:03:58]} 18. Rd3 {[%clk 0:03:40.4]} 18... Rac8 {[%clk 0:03:48]} 19. Rhd1 {[%clk
0:03:39.3]} 19... Nd5 {[%clk 0:03:37.9]} 20. Ke1 {[%clk 0:03:23]} 20... Bf6
{[%clk 0:03:23.4]} 21. Ng4 {[%clk 0:03:10.4]} 21... Nxe3 {[%clk 0:02:45.2]} 22.
Nxe3 {[%clk 0:03:05.4]} 22... Kf8 {[%clk 0:02:38.9]} 23. Ng4 {[%clk 0:02:54.2]}
23... Ke7 {[%clk 0:02:27.3]} 24. f4 {[%clk 0:02:35.7]} 24... Rd7 {[%clk
0:02:14.1]} 25. Ne5 {[%clk 0:02:34]} 25... Bxe5 {[%clk 0:02:12.6]} 26. fxe5
{[%clk 0:02:31.7]} 26... Rcd8 {[%clk 0:02:11.8]} 27. Ke2 {[%clk 0:02:23.4]}
27... Rd5 {[%clk 0:02:02.9]} 28. c4 {[%clk 0:02:11.4]} 28... Rxe5 {[%clk
0:01:43.2]} 29. Nc6+ {[%clk 0:02:08.3]} 29... bxc6 {[%clk 0:01:39.7]} 30. Rxd8
{[%clk 0:02:07]} 30... Nc3+ {[%clk 0:01:31.5]} 31. Kf3 {[%clk 0:01:57.2]} 31...
Nxd1 {[%clk 0:01:29.6]} 32. Rxd1 {[%clk 0:01:52.5]} 32... c5 {[%clk 0:01:21.7]}
33. b5 {[%clk 0:01:44.6]} 33... axb5 {[%clk 0:01:17.3]} 34. cxb5 {[%clk
0:01:44.5]} 34... c4 {[%clk 0:01:16.5]} 35. Rc1 {[%clk 0:01:38.8]} 35... Rxb5
{[%clk 0:01:14.1]} 36. Rxc4 {[%clk 0:01:37.8]} 36... Rxb2 {[%clk 0:01:12.8]} 37.
Rc7+ {[%clk 0:01:36.8]} 37... Kf6 {[%clk 0:01:10.2]} 38. Rc3 {[%clk 0:01:32.6]}
38... Rb4 {[%clk 0:01:07.8]} 39. Re3 {[%clk 0:01:31]} 39... Kf5 {[%clk 0:01:06]}
40. g4+ {[%clk 0:01:28.5]} 40... Kf6 {[%clk 0:01:02]} 41. h4 {[%clk 0:01:26.6]}
41... h5 {[%clk 0:00:59.4]} 42. g5+ {[%clk 0:01:19.5]} 42... Kf5 {[%clk
0:00:57.6]} 43. Kg3 {[%clk 0:01:19]} 43... Rg4+ {[%clk 0:00:54.3]} 44. Kh3
{[%clk 0:01:17.5]} 44... f6 {[%clk 0:00:50.9]} 45. gxf6 {[%clk 0:01:12.8]} 45...
gxf6 {[%clk 0:00:50.1]} 46. Rc3 {[%clk 0:01:08.4]} 46... e5 {[%clk 0:00:49.1]}
47. Rc5 {[%clk 0:01:05.6]} 47... Kf4 {[%clk 0:00:47.7]} 48. Rc4+ {[%clk
0:01:04.9]} 48... e4 {[%clk 0:00:45.8]} 49. Rb4 {[%clk 0:01:02.6]} 49... f5
{[%clk 0:00:44.7]} 50. Rb3 {[%clk 0:01:00.6]} 50... e3 {[%clk 0:00:41.5]} 51.
Rb4+ {[%clk 0:00:59.5]} 51... Kf3 {[%clk 0:00:40.9]} 52. Rb1 {[%clk 0:00:57.5]}
52... Kf2 {[%clk 0:00:39]} 53. Rh1 {[%clk 0:00:55.7]} 53... e2 {[%clk
0:00:35.8]} 54. Rh2+ {[%clk 0:00:54.7]} 54... Ke3 {[%clk 0:00:33.9]} 55. Rh1
{[%clk 0:00:52.4]} 55... Kd2 {[%clk 0:00:31.9]} 56. Rh2 {[%clk 0:00:49.9]} 56...
Kd1 {[%clk 0:00:31]} 57. Rh1+ {[%clk 0:00:48.8]} 57... e1=Q {[%clk 0:00:30.2]}
58. Rxe1+ {[%clk 0:00:48.3]} 58... Kxe1 {[%clk 0:00:29.6]} 0-1

[Event "Live Chess"]
[Site "Chess.com"]
[Date "2024.06.02"]
[Round "-"]
[White "friarnator"]
[Black "TigerTank70"]
[Result "0-1"]
[WhiteElo "2183"]
[BlackElo "2229"]
[TimeControl "300"]
[EndTime "2:04:43 PDT"]
[Termination "TigerTank70 won by resignation"]

1. d4 {[%clk 0:04:55.6]} 1... d5 {[%clk 0:04:58.6]} 2. Nc3 {[%clk 0:04:54.6]}
2... Nf6 {[%clk 0:04:55.9]} 3. Bf4 {[%clk 0:04:53.7]} 3... e6 {[%clk 0:04:53.7]}
4. e3 {[%clk 0:04:52.1]} 4... Bd6 {[%clk 0:04:53]} 5. Bg3 {[%clk 0:04:51.2]}
5... b6 {[%clk 0:04:45.7]} 6. Nf3 {[%clk 0:04:50.2]} 6... Ba6 {[%clk 0:04:43.9]}
7. Bxa6 {[%clk 0:04:46.6]} 7... Nxa6 {[%clk 0:04:43.8]} 8. a3 {[%clk 0:04:44.7]}
8... O-O {[%clk 0:04:42.6]} 9. Qd3 {[%clk 0:04:43.3]} 9... Qc8 {[%clk
0:04:39.9]} 10. Ne5 {[%clk 0:04:40.9]} 10... c5 {[%clk 0:04:38.5]} 11. O-O-O
{[%clk 0:04:38]} 11... c4 {[%clk 0:04:37]} 12. Qe2 {[%clk 0:04:36.4]} 12... Nc7
{[%clk 0:04:35.1]} 13. Nc6 {[%clk 0:04:32.7]} 13... Qd7 {[%clk 0:04:28.2]} 14.
Bxd6 {[%clk 0:04:20.1]} 14... Qxd6 {[%clk 0:04:28.1]} 15. Ne5 {[%clk 0:04:16.8]}
15... b5 {[%clk 0:04:27.4]} 16. Nb1 {[%clk 0:04:15.2]} 16... b4 {[%clk
0:04:25.4]} 17. g4 {[%clk 0:04:12.7]} 17... bxa3 {[%clk 0:04:15]} 18. Nxa3
{[%clk 0:04:10.9]} 18... Rfb8 {[%clk 0:04:13.8]} 19. c3 {[%clk 0:04:08.2]} 19...
Rb3 {[%clk 0:04:09.9]} 20. g5 {[%clk 0:04:01.8]} 20... Ne4 {[%clk 0:04:07.8]}
21. f3 {[%clk 0:03:54.4]} 21... Nxc3 {[%clk 0:04:06.4]} 22. Qc2 {[%clk
0:03:41.3]} 22... Nxd1 {[%clk 0:04:00.9]} 23. Rxd1 {[%clk 0:03:41.2]} 23... Rab8
{[%clk 0:03:58]} 24. Nxf7 {[%clk 0:03:11.4]} 24... Kxf7 {[%clk 0:03:36]} 25.
Qxh7 {[%clk 0:03:07.3]} 25... Ne8 {[%clk 0:03:14.8]} 26. g6+ {[%clk 0:02:03.7]}
26... Ke7 {[%clk 0:03:11.1]} 27. Qg8 {[%clk 0:01:56.9]} 27... Kd8 {[%clk
0:03:05.4]} 28. Nc2 {[%clk 0:01:50.8]} 28... Rxb2 {[%clk 0:03:01.4]} 29. Qf7
{[%clk 0:01:41.1]} 29... c3 {[%clk 0:02:55.1]} 0-1

[Event "Live Chess"]
[Site "Chess.com"]
[Date "2024.06.02"]
[Round "-"]
[White "Vladyslav2008"]
[Black "nitrofish07"]
[Result "1-0"]
[WhiteElo "2261"]
[BlackElo "2076"]
[TimeControl "300"]
[EndTime "2:04:58 PDT"]
[Termination "Vladyslav2008 won by resignation"]

1. d4 {[%clk 0:04:54.9]} 1... d5 {[%clk 0:04:59]} 2. c4 {[%clk 0:04:53.5]} 2...
c6 {[%clk 0:04:58]} 3. Nf3 {[%clk 0:04:46.1]} 3... Nf6 {[%clk 0:04:56.8]} 4. e3
{[%clk 0:04:45.1]} 4... e6 {[%clk 0:04:54.3]} 5. Nc3 {[%clk 0:04:43.7]} 5...
Nbd7 {[%clk 0:04:50.8]} 6. Be2 {[%clk 0:04:42.2]} 6... Bd6 {[%clk 0:04:49.9]} 7.
O-O {[%clk 0:04:39.9]} 7... O-O {[%clk 0:04:49.6]} 8. c5 {[%clk 0:04:34.1]} 8...
Bc7 {[%clk 0:04:48.5]} 9. a4 {[%clk 0:04:32.4]} 9... a5 {[%clk 0:04:47.3]} 10.
Bd2 {[%clk 0:04:23.4]} 10... e5 {[%clk 0:04:43.2]} 11. Qc2 {[%clk 0:04:14]}
11... e4 {[%clk 0:04:35]} 12. Ne1 {[%clk 0:04:10.9]} 12... h5 {[%clk 0:04:18.2]}
13. f3 {[%clk 0:04:08.6]} 13... Re8 {[%clk 0:04:15.9]} 14. fxe4 {[%clk 0:04:07]}
14... dxe4 {[%clk 0:04:07.5]} 15. g3 {[%clk 0:03:49.8]} 15... h4 {[%clk
0:04:04.7]} 16. g4 {[%clk 0:03:40.7]} 16... Nf8 {[%clk 0:03:41.8]} 17. h3 {[%clk
0:03:34.7]} 17... Ne6 {[%clk 0:03:34.4]} 18. Ng2 {[%clk 0:03:32.7]} 18... Ng5
{[%clk 0:03:29.8]} 19. Nf4 {[%clk 0:03:16]} 19... Bxf4 {[%clk 0:03:28.4]} 20.
exf4 {[%clk 0:03:14.7]} 20... Nxh3+ {[%clk 0:03:27.5]} 21. Kg2 {[%clk
0:03:13.5]} 21... Nxg4 {[%clk 0:03:09.7]} 22. f5 {[%clk 0:03:03]} 22... e3
{[%clk 0:02:12.2]} 23. Bxg4 {[%clk 0:02:57.9]} 23... exd2 {[%clk 0:02:04]} 24.
Bxh3 {[%clk 0:02:47.6]} 24... Qg5+ {[%clk 0:01:58.7]} 25. Kh1 {[%clk 0:02:45]}
25... Re3 {[%clk 0:01:56.3]} 26. Bg2 {[%clk 0:02:35]} 26... h3 {[%clk
0:01:37.8]} 27. Be4 {[%clk 0:02:33.4]} 27... Qg4 {[%clk 0:01:06.4]} 28. Rg1
{[%clk 0:02:28]} 28... Qh4 {[%clk 0:01:05.1]} 29. f6 {[%clk 0:02:20.5]} 29...
Qxf6 {[%clk 0:00:53.9]} 30. Raf1 {[%clk 0:02:18.3]} 30... Qxd4 {[%clk
0:00:47.3]} 31. Bh7+ {[%clk 0:02:12.5]} 31... Kh8 {[%clk 0:00:33.7]} 32. Rxf7
{[%clk 0:02:03.4]} 32... Rxc3 {[%clk 0:00:19.6]} 33. bxc3 {[%clk 0:01:58.2]}
33... Qd5+ {[%clk 0:00:18.7]} 34. Qe4 {[%clk 0:01:51.3]} 34... Qxf7 {[%clk
0:00:18.6]} 35. Bg6 {[%clk 0:01:49.9]} 35... Qf6 {[%clk 0:00:17.6]} 36. Qe8+
{[%clk 0:01:48.4]} 1-0